{"text_format":"1","workbook":"xlsx","n_sheets":3,"sheets":["البيانات","ورقة2","الفلتر"],"not_rendered":{"charts":0,"images":1,"macros":1,"external_links":0,"defined_names":0,"comments":0,"pivot_tables":0},"unopened":[],"bounds":{"document_bytes":16777216,"sheet_cells":100000,"rows_first":2000,"rows_last":500,"rows_between":2000,"halvings":0,"cell_chars":16384,"cell_head_chars":4096},"cells_cut":0,"cells_raw":0,"read":"whole","date_system":"1900"}

{"sheet":"البيانات","index":0,"n_rows":31,"n_cols":45,"rows_kept":31,"cut":false,"hidden":false,"merged":[]}
[]
[]
[]
["الرقم ","الباركود","اسم المجموعة ","اسم الصنف","الكمية","الوحدة","سعر الشراء","سعر البيع","الضريبة","رابط الصورة"]
[{"$f":"IF(B5<>\"\",ROW(A5:A5)-4,\"\")","v":1},30,"سندوتشات","سندويش كودو",null,"حبة",3.5,7,0.5]
[{"$f":"IF(B6<>\"\",ROW(A6:A6)-4,\"\")","v":2},31,"سندوتشات","سندوش كبدة",null,"حبة",2,5,0.05]
[3,32,"سندوتشات","سندويش روبيان",null,"حبة",3.5,7,0.5]
[4,33,"سندوتشات","سندوش مسحب ",null,"حبة",2,5,0.05]
[5,34,"سندوتشات","سندويش طعمية",null,"حبة",2,5,0.05]
[6,589,"مشروبات","عصير برتقال فرش1",null,"حبة",2.5,6,0.5,null,null,null,null,null,{"$f":"COUNTA(Q10:Q23)","v":0},null,null,null,null,null,null,null,null,null,null,null,null,null,null,{"$f":"COUNTA(B24:B26)","v":3}]
[7,588,"مشروبات","بيبسي عائلى ",null,"قارورة",5.5,8.5,0.05]
[8,576,"مشروبات","بيبسي ",null,"حبة",1.5,2.5,0.05]
[9,578,"مشروبات","سفن اب",null,"حبة",1.5,3,0.05]
[10,579,"مشروبات","سفن اب كبير",null,"حبة",5,8,0.05]
[11,580,"مشروبات","بيبسي وسط",null,"حبة",4,7,0.05]
[12,581,"مشروبات","بيبسي دايت",null,"حبة",2,3,0.05,null,null,null,null,null,null,{"$f":"IF(Q16<>\"\",ROW(P16:P16)-3,\"\")","v":""}]
[13,582,"مشروبات","عصير برتقال وسط",null,"كاسة",4,7,0.05,null,null,null,null,null,null,""]
[14,602,"مشويات","دجاج مشوي ",null,"حبة",13,20,0.5,null,null,null,null,null,null,"",null,null,null,null,null,null,null,null,null,null,null,null,null,null,{"$f":"IF(AF18<>\"\",ROW(AE18:AE18)-3,\"\")","v":""},null,null,null,null,null,null,null,null,null,null,null,null,null,{"$f":"IF(AT18<>\"\",ROW(AS18:AS18)-3,\"\")","v":""}]
[15,605,"مشويات","حبة شواية  مع الرز",null,"حبة",15,28,0.05,null,null,null,null,null,null,"",null,null,null,null,null,null,null,null,null,null,null,null,null,null,"",null,null,null,null,null,null,null,null,null,null,null,null,null,""]
[16,608,"مشويات","رز ابيض",null,"نفر",2,5,0.05,null,null,null,null,null,null,"",null,null,null,null,null,null,null,null,null,null,null,null,null,null,"",null,null,null,null,null,null,null,null,null,null,null,null,null,""]
[17,609,"مشويات","رز بخارى",null,"نفر",2,5,0.05,null,null,null,null,null,null,"",null,null,null,null,null,null,null,null,null,null,null,null,null,null,"",null,null,null,null,null,null,null,null,null,null,null,null,null,""]
[18,610,"مشويات","كباب لحم",null,"نفر",10,20,0.05]
[19,611,"مشويات","رز بريانى",null,"حبة",13,20,0.5]
[20,4554662,"بطاطس","بطاطس2",null,"كيس",5,10,0.5,null,null,null,{"$f":"COUNTA(B27:B28)","v":2}]
[21,4554666,"بطاطس","بطاطس3",null,"كيس",5,10,0.5]
[22,4554667,"بطاطس","بطاطس4",null,"كيس",5,10,0.5,null,null,null,null,{"$f":"IF(O26<>\"\",ROW(N26:N26)-3,\"\")","v":""}]
[23,901,"البروست","بروست حراق",null,"حبة",15,28,0.05,null,null,null,null,""]
[24,903,"البروست","بروست عادي",null,"حبة",15,28,0.05,null,null,null,null,""]
["",null,null,null,null,null,null,null,null,null,null,null,null,""]
["",null,null,null,null,null,null,null,null,null,null,null,null,""]
["",null,null,null,null,null,null,null,null,null,null,null,null,""]

{"sheet":"ورقة2","index":1,"n_rows":16,"n_cols":94,"rows_kept":16,"cut":false,"hidden":true,"merged":[]}
[null,null,null,null,null,null,null,null,null,null,null,null,null,null,null,null,null,null,null,null,null,null,null,null,1,null,null,null,null,null,null,null,null,null,null,null,null,null,null,1,null,null,null,null,null,null,null,null,null,null,null,null,null,null,null,1,null,null,null,null,null,null,null,null,null,null,null,null,null,null,1,null,null,null,null,null,null,null,null,null,null,null,null,null,1]
[null,null,null,null,null,null,null,null,null,null,null,null,null,null,null,null,null,null,null,null,null,null,"المجموعة الاولى ","سندوتشات",1,null,null,null,null,null,null,null,null,null,null,null,1,"المجوعة الثانية","مشروبات",1,null,null,null,null,null,null,null,null,null,null,null,null,null,"المجموعة الثالثة ","مشويات",1,null,null,null,null,null,null,null,null,null,null,null,null,"المجموعة الرابعة ","بطاطس",1,null,null,null,null,null,null,null,null,null,null,null,"المجموعة الخامسة ","البروست",1]
[null,null,null,null,null,null,null,null,null,null,null,null,null,null,null,null,null,null,null,null,null,null,{"$f":"21-W4","v":16},"الرقم ","الباركود","اسم المجموعة ","اسم الصنف","الكمية","الوحدة","سعر الشراء","سعر البيع","الضريبة",null,"رابط الصورة",null,null,null,{"$f":"21-AL4","v":13},"الرقم ","الباركود","اسم المجموعة ","اسم الصنف","الكمية","الوحدة","سعر الشراء","سعر البيع","الضريبة",null,"رابط الصورة",null,null,null,null,{"$f":"21-BB4","v":15},"الرقم ","الباركود","اسم المجموعة ","اسم الصنف","الكمية","الوحدة","سعر الشراء","سعر البيع","الضريبة",null,"رابط الصورة",null,null,null,{"$f":"21-BQ4","v":18},"الرقم ","الباركود","اسم المجموعة ","اسم الصنف","الكمية","الوحدة","سعر الشراء","سعر البيع","الضريبة",null,"رابط الصورة",null,null,{"$f":"21-CE4","v":19},"الرقم ","الباركود","اسم المجموعة ","اسم الصنف","الكمية","الوحدة","سعر الشراء","سعر البيع","الضريبة",null,"رابط الصورة"]
[null,null,null,null,null,null,null,null,null,null,null,null,null,null,null,null,null,null,null,null,null,null,{"$f":"COUNTA(Y4:Y8)","v":5},{"$f":"IF(Y4<>\"\",ROW(X4:X4)-3,\"\")","v":1},30,"سندوتشات","سندويش كودو",null,"حبة",3.5,7,0.5,null,null,null,null,null,{"$f":"COUNTA(AN4:AN24)","v":8},{"$f":"IF(AN4<>\"\",ROW(AM4:AM4)-3,\"\")","v":1},589,"مشروبات","عصير برتقال فرش1",null,"حبة",2.5,6,0.5,"C:\\Users\\ASUS\\Desktop\\اكسيل\\Images\\عصير برتقال.jpg","D:\\الاكواد البرمجية الثانية المعدلة\\الاكواد البرمجية\\كود الترحيل\\الفواتير\\برنامج كاشير\\برنامج الافق لنقاط البيع\\Images\\عصير برتقال فرش1.jpg",null,null,null,null,{"$f":"COUNTA(BD4:BD24)","v":6},{"$f":"IF(BD4<>\"\",ROW(BC4:BC4)-3,\"\")","v":1},602,"مشويات","دجاج مشوي ",null,"حبة",13,20,0.5,null,"D:\\الاكواد البرمجية الثانية المعدلة\\الاكواد البرمجية\\كود الترحيل\\الفواتير\\برنامج كاشير\\برنامج الافق لنقاط البيع\\Images\\دجاج مشوي .jpg",null,null,null,{"$f":"COUNTA(BS4:BS6)","v":3},{"$f":"IF(BS4<>\"\",ROW(BR4:BR4)-3,\"\")","v":1},4554662,"بطاطس","بطاطس2",null,"كيس",5,10,0.5,"","D:\\الاكواد البرمجية الثانية المعدلة\\الاكواد البرمجية\\كود الترحيل\\الفواتير\\برنامج كاشير\\برنامج الافق لنقاط البيع\\Images\\بطاطس2.jpg",null,null,{"$f":"COUNTA(CG4:CG5)","v":2},{"$f":"IF(CG4<>\"\",ROW(CF4:CF4)-3,\"\")","v":1},901,"البروست","بروست حراق",null,"حبة",15,28,0.05,null,"D:\\الاكواد البرمجية الثانية المعدلة\\الاكواد البرمجية\\كود الترحيل\\الفواتير\\برنامج كاشير\\برنامج الافق لنقاط البيع\\Images\\بروست حراق.jpg"]
[null,null,null,null,null,null,null,null,null,null,null,null,null,null,null,null,null,null,null,null,null,null,null,2,31,"سندوتشات","سندوش كبدة",null,"حبة",2,5,0.05,null,null,null,null,null,null,2,588,"مشروبات","بيبسي عائلى ",null,"قارورة",5.5,8.5,0.05,null,"D:\\الاكواد البرمجية الثانية المعدلة\\الاكواد البرمجية\\كود الترحيل\\الفواتير\\برنامج كاشير\\برنامج الافق لنقاط البيع\\Images\\بيبسي عائلى .jpg",null,null,null,null,null,2,605,"مشويات","حبة شواية  مع الرز",null,"حبة",15,28,0.05,null,"D:\\الاكواد البرمجية الثانية المعدلة\\الاكواد البرمجية\\كود الترحيل\\الفواتير\\برنامج كاشير\\برنامج الافق لنقاط البيع\\Images\\حبة شواية  مع الرز.jpg",null,null,null,null,2,4554666,"بطاطس","بطاطس3",null,"كيس",5,10,0.5,"","D:\\الاكواد البرمجية الثانية المعدلة\\الاكواد البرمجية\\كود الترحيل\\الفواتير\\برنامج كاشير\\برنامج الافق لنقاط البيع\\Images\\بطاطس3.jpg",null,null,null,2,903,"البروست","بروست عادي",null,"حبة",15,28,0.05,null,"D:\\الاكواد البرمجية الثانية المعدلة\\الاكواد البرمجية\\كود الترحيل\\الفواتير\\برنامج كاشير\\برنامج الافق لنقاط البيع\\Images\\بروست عادي.jpg"]
[null,null,null,null,null,null,null,null,null,null,null,null,null,null,null,null,null,null,null,null,null,null,null,3,32,"سندوتشات","سندويش روبيان",null,"حبة",3.5,7,0.5,null,null,null,null,null,null,3,576,"مشروبات","بيبسي ",null,"حبة",1.5,2.5,0.05,null,"D:\\الاكواد البرمجية الثانية المعدلة\\الاكواد البرمجية\\كود الترحيل\\الفواتير\\برنامج كاشير\\برنامج الافق لنقاط البيع\\Images\\بيبسي .jpg",null,null,null,null,null,3,608,"مشويات","رز ابيض",null,"نفر",2,5,0.05,null,"D:\\الاكواد البرمجية الثانية المعدلة\\الاكواد البرمجية\\كود الترحيل\\الفواتير\\برنامج كاشير\\برنامج الافق لنقاط البيع\\Images\\رز ابيض.jpg",null,null,null,null,3,4554667,"بطاطس","بطاطس4",null,"كيس",5,10,0.5,"","D:\\الاكواد البرمجية الثانية المعدلة\\الاكواد البرمجية\\كود الترحيل\\الفواتير\\برنامج كاشير\\برنامج الافق لنقاط البيع\\Images\\بطاطس4.jpg",null,null,null,""]
[null,null,null,null,null,null,null,null,null,null,null,null,null,null,null,null,null,null,null,null,null,null,null,4,33,"سندوتشات","سندوش مسحب ",null,"حبة",2,5,0.05,null,null,null,null,null,null,4,578,"مشروبات","سفن اب",null,"حبة",1.5,3,0.05,null,"D:\\الاكواد البرمجية الثانية المعدلة\\الاكواد البرمجية\\كود الترحيل\\الفواتير\\برنامج كاشير\\برنامج الافق لنقاط البيع\\Images\\سفن اب.jpg",null,null,null,null,null,4,609,"مشويات","رز بخارى",null,"نفر",2,5,0.05,null,"D:\\الاكواد البرمجية الثانية المعدلة\\الاكواد البرمجية\\كود الترحيل\\الفواتير\\برنامج كاشير\\برنامج الافق لنقاط البيع\\Images\\رز بخارى.jpg",null,null,null,null,"",null,null,null,null,null,null,null,null,"",null,null,null,null,""]
[null,null,null,null,null,null,null,null,null,null,null,null,null,null,null,null,null,null,null,null,null,null,null,5,34,"سندوتشات","سندويش طعمية",null,"حبة",2,5,0.05,null,null,null,null,null,null,5,579,"مشروبات","سفن اب كبير",null,"حبة",5,8,0.05,null,"D:\\الاكواد البرمجية الثانية المعدلة\\الاكواد البرمجية\\كود الترحيل\\الفواتير\\برنامج كاشير\\برنامج الافق لنقاط البيع\\Images\\سفن اب كبير.jpg",null,null,null,null,null,5,610,"مشويات","كباب لحم",null,"نفر",10,20,0.05,null,"D:\\الاكواد البرمجية الثانية المعدلة\\الاكواد البرمجية\\كود الترحيل\\الفواتير\\برنامج كاشير\\برنامج الافق لنقاط البيع\\Images\\كباب لحم.jpg",null,null,null,null,"",null,null,null,null,null,null,null,null,null,null,null,null,null,""]
[null,null,null,null,null,null,null,null,null,null,null,null,null,null,null,null,null,null,null,null,null,null,null,"",null,null,null,null,null,null,null,null,null,null,null,null,null,null,6,580,"مشروبات","بيبسي وسط",null,"حبة",4,7,0.05,null,"D:\\الاكواد البرمجية الثانية المعدلة\\الاكواد البرمجية\\كود الترحيل\\الفواتير\\برنامج كاشير\\برنامج الافق لنقاط البيع\\Images\\بيبسي وسط.jpg",null,null,null,null,null,6,611,"مشويات","رز بريانى",null,"حبة",13,20,0.5,null,"D:\\الاكواد البرمجية الثانية المعدلة\\الاكواد البرمجية\\كود الترحيل\\الفواتير\\برنامج كاشير\\برنامج الافق لنقاط البيع\\Images\\رز بريانى.jpg",null,null,null,null,"",null,null,null,null,null,null,null,null,null,null,null,null,null,""]
[null,null,null,null,null,null,null,null,null,null,null,null,null,null,null,null,null,null,null,null,null,null,null,"",null,null,null,null,null,null,null,null,null,null,null,null,null,null,7,581,"مشروبات","بيبسي دايت",null,"حبة",2,3,0.05,null,"D:\\الاكواد البرمجية الثانية المعدلة\\الاكواد البرمجية\\كود الترحيل\\الفواتير\\برنامج كاشير\\برنامج الافق لنقاط البيع\\Images\\بيبسي دايت.jpg",null,null,null,null,null,"",null,null,null,null,null,null,null,null,null,null,null,null,null,null,"",null,null,null,null,null,null,null,null,null,null,null,null,null,""]
[null,null,null,null,null,null,null,null,null,null,null,null,null,null,null,null,null,null,null,null,null,null,null,"",null,null,null,null,null,null,null,null,null,null,null,null,null,null,8,582,"مشروبات","عصير برتقال وسط",null,"كاسة",4,7,0.05,null,"D:\\الاكواد البرمجية الثانية المعدلة\\الاكواد البرمجية\\كود الترحيل\\الفواتير\\برنامج كاشير\\برنامج الافق لنقاط البيع\\Images\\عصير برتقال وسط.jpg",null,null,null,null,null,"",null,null,null,null,null,null,null,null,null,null,null,null,null,null,"",null,null,null,null,null,null,null,null,null,null,null,null,null,""]
[null,null,null,null,null,null,null,null,null,null,null,null,null,null,null,null,null,null,null,null,null,null,null,"",null,null,null,null,null,null,null,null,null,null,null,null,null,null,"",null,null,null,null,null,null,null,null,null,null,null,null,null,null,null,"",null,null,null,null,null,null,null,null,null,null,null,null,null,null,"",null,null,null,null,null,null,null,null,null,null,null,null,null,""]
[null,null,null,null,null,null,null,null,null,null,null,null,null,null,null,null,null,null,null,null,null,null,null,"",null,null,null,null,null,null,null,null,null,null,null,null,null,null,"",null,null,null,null,null,null,null,null,null,null,null,null,null,null,null,"",null,null,null,null,null,null,null,null,null,null,null,null,null,null,"",null,null,null,null,null,null,null,null,null,null,null,null,null,""]
[null,null,null,null,null,null,null,null,null,null,null,null,null,null,null,null,null,null,null,null,null,null,null,"",null,null,null,null,null,null,null,null,null,null,null,null,null,null,"",null,null,null,null,null,null,null,null,null,null,null,null,null,null,null,"",null,null,null,null,null,null,null,null,null,null,null,null,null,null,"",null,null,null,null,null,null,null,null,null,null,null,null,null,""]
[null,null,null,null,null,null,null,null,null,null,null,null,null,null,null,null,null,null,null,null,null,null,null,"",null,null,null,null,null,null,null,null,null,null,null,null,null,null,"",null,null,null,null,null,null,null,null,null,null,null,null,null,null,null,"",null,null,null,null,null,null,null,null,null,null,null,null,null,null,"",null,null,null,null,null,null,null,null,null,null,null,null,null,""]
[null,null,null,null,null,null,null,null,null,null,null,null,null,null,null,null,null,null,null,null,null,null,null,"",null,null,null,null,null,null,null,null,null,null,null,null,null,null,"",null,null,null,null,null,null,null,null,null,null,null,null,null,null,null,"",null,null,null,null,null,null,null,null,null,null,null,null,null,null,"",null,null,null,null,null,null,null,null,null,null,null,null,null,""]

{"sheet":"الفلتر","index":2,"n_rows":8,"n_cols":10,"rows_kept":8,"cut":false,"hidden":false,"merged":[]}
[null,null,null,null,null,"سندوتشات"]
[]
["الرقم ","الباركود","اسم المجموعة ","اسم الصنف","الكمية","الوحدة","سعر الشراء","سعر البيع","الضريبة","رابط الصورة"]
[1,30,"سندوتشات","سندويش كودو",null,"حبة",3.5,7,0.5]
[2,31,"سندوتشات","سندوش كبدة",null,"حبة",2,5,0.05]
[3,32,"سندوتشات","سندويش روبيان",null,"حبة",3.5,7,0.5]
[4,33,"سندوتشات","سندوش مسحب ",null,"حبة",2,5,0.05]
[5,34,"سندوتشات","سندويش طعمية",null,"حبة",2,5,0.05]